bitfinex-derivatives/quotes_BNBF0:USTF0_20250708
["timestamp","ask_amount","ask_price","bid_price","bid_amount"]
[1751954206393,1.70325958,659.86,659.43,1.535]
[1751954208695,1.70325958,659.85,659.43,3.2364814]
[1751954209294,1.70325958,659.86,659.43,3.2364814]
[1751954209790,1.70325958,659.86,659.43,1.535]
[1751954212396,1.70325958,659.87,659.43,1.535]
[1751954212596,1.70325958,659.86,659.43,1.535]
[1751954213294,1.70325958,659.87,659.43,1.535]
[1751954213495,1.70325958,659.86,659.43,1.535]
[1751954213798,1.70325958,659.87,659.43,1.535]
[1751954218401,1.70325958,659.87,659.42,1.7014814]
[1751954220406,1.70325958,659.86,659.41,1.7014814]
[1751954222206,1.70325958,659.86,659.42,1.643]
[1751954224213,2.26959923,659.96,659.42,1.643]
[1751954224214,1.01829913,659.87,659.42,1.643]
[1751954224508,1.70325958,659.89,659.42,1.643]
[1751954225210,1.70325958,659.87,659.42,1.643]
[1751954228408,1.70325958,659.86,659.42,1.643]
[1751954228611,1.70325958,659.84,659.42,1.643]
[1751954229810,1.70325958,659.82,659.42,1.643]
[1751954231010,1.70325958,659.8,659.42,1.643]
[1751954231313,1.70325958,659.78,659.42,1.643]
[1751954233315,1.70325958,659.79,659.42,1.643]
[1751954234212,1.70325958,659.78,659.42,1.643]
[1751954235614,1.70325958,659.79,659.42,1.643]
[1751954238417,1.70325958,659.78,659.42,1.643]
[1751954243320,1.70325958,659.77,659.42,1.643]
[1751954243925,1.70325958,659.78,659.42,1.643]
[1751954245927,1.70325958,659.77,659.42,1.643]
[1751954248624,1.70325958,659.76,659.42,1.643]
[1751954249326,1.70325958,659.78,659.42,1.643]
[1751954249526,1.70325958,659.72,659.42,1.643]
[1751954252624,1.70325958,659.73,659.42,1.643]
[1751954254027,1.70325958,659.72,659.42,1.643]
[1751954254228,1.70325958,659.72,659.29,0.26382224]
[1751954254424,1.70325958,659.73,659.29,0.26382224]
[1751954254828,1.70325958,659.72,659.29,0.26382224]
[1751954255328,1.70325958,659.73,659.29,0.26382224]
[1751954257726,1.70325958,659.73,659.3,1.293]
[1751954258730,1.70132565,659.73,659.3,1.293]
[1751954259230,1.70132565,659.72,659.3,1.293]
[1751954272137,1.70132565,659.71,659.3,1.293]
[1751954276142,1.70132565,659.7,659.3,1.293]
[1751954279151,1.70132565,659.69,659.3,1.293]
[1751954282356,1.70132565,659.68,659.3,1.293]
[1751954284362,1.70132565,659.67,659.3,1.293]
[1751954289460,1.70132565,659.74,659.3,1.293]
[1751954294669,1.70132565,659.73,659.3,1.293]
[1751954298368,1.70132565,659.79,659.3,1.293]
[1751954299168,1.70132565,659.8,659.3,1.293]
[1751954299367,1.70132565,659.77,659.3,1.293]
[1751954307072,1.70132565,659.81,659.3,1.293]
[1751954307270,1.70132565,659.82,659.3,1.293]
[1751954308374,1.70132565,659.81,659.31,1.7001545]
[1751954309876,3.97001674,659.84,659.33,1.7001545]
[1751954310173,2.26869109,659.83,659.33,1.7001545]
[1751954310474,1.70132565,659.85,659.33,1.7001545]
[1751954311377,1.70132565,659.85,659.32,1.7001545]
[1751954311873,1.70132565,659.82,659.3,2.9931545]
[1751954312181,1.70132565,659.81,659.35,1.7001545]
[1751954312374,1.70132565,659.81,659.34,1.7001545]
[1751954312578,1.70132565,659.82,659.33,1.7001545]
[1751954312876,1.70132565,659.83,659.31,1.7001545]
[1751954314375,1.70132565,659.84,659.31,1.7001545]
[1751954314580,1.70132565,659.83,659.31,1.7001545]
[1751954315480,1.70132565,659.84,659.31,1.7001545]
[1751954316777,1.70132565,659.86,659.33,1.7001545]
[1751954317382,1.70132565,659.87,659.33,1.7001545]
[1751954318483,1.70132565,659.92,659.37,1.7001545]
[1751954319583,1.70132565,659.92,659.36,1.7001545]
[1751954320484,3.96696018,660.0,659.34,1.633]
[1751954320683,2.26563453,659.99,659.34,1.633]
[1751954320880,1.70132565,660.0,659.34,1.633]
[1751954324281,1.70132565,660.01,659.34,1.633]
[1751954324582,3.96696018,660.01,659.34,1.633]
[1751954324786,2.26563453,660.0,659.34,1.633]
[1751954324983,1.70132565,660.01,659.34,1.633]
[1751954328391,1.70132565,660.02,659.34,1.633]
[1751954330290,1.70132565,659.98,659.34,1.633]
[1751954330490,1.70132565,659.99,659.34,1.633]
[1751954333390,1.70132565,660.0,659.34,1.633]
[1751954333589,1.70132565,659.99,659.34,1.633]
[1751954336693,2.71904767,659.99,659.34,1.633]
[1751954336896,1.70132565,659.99,659.34,1.633]
[1751954339892,1.70132565,659.98,659.34,1.633]
[1751954341299,1.70132565,659.99,659.34,1.633]
[1751954342495,1.70132565,659.98,659.34,1.633]
[1751954345402,1.70132565,659.97,659.34,1.633]
[1751954347003,1.70132565,659.98,659.34,1.633]
[1751954348704,1.70132565,659.99,659.34,1.633]
[1751954351206,1.70132565,659.98,659.34,1.633]
[1751954351705,0.41170546,660.14,659.34,1.633]
[1751954351706,1.70132565,659.99,659.34,1.633]
[1751954352301,1.70132565,659.98,659.34,1.633]
[1751954352807,1.70132565,659.98,659.29,0.26382224]
[1751954353204,1.70132565,659.99,659.29,0.26382224]
[1751954353404,1.70132565,659.98,659.29,0.26382224]
[1751954353808,1.70132565,659.97,659.29,1.96397674]
[1751954354208,1.70132565,659.97,659.3,1.7001545]
[1751954354406,1.70132565,659.96,659.31,1.7001545]
[1751954355407,1.70132565,659.95,659.31,1.7001545]
[1751954355812,1.70132565,659.94,659.33,1.7001545]
[1751954356512,1.70132565,659.94,659.34,1.7001545]
[1751954357415,1.70132565,659.93,659.35,1.7001545]
[1751954357911,1.70132565,659.92,659.36,1.7001545]
[1751954358414,1.70132565,659.91,659.37,1.7001545]
[1751954361612,1.70132565,659.9,659.38,1.7001545]
[1751954361810,1.70279789,659.91,659.38,1.70009388]
[1751954362418,1.70279789,659.9,659.38,1.70009388]
[1751954362820,1.70279789,659.92,659.35,1.70009388]
[1751954363120,1.70279789,659.91,659.37,1.70009388]
[1751954365424,1.70279789,659.9,659.37,1.70009388]
[1751954365624,1.70279789,659.9,659.38,1.70009388]
[1751954366121,1.70279789,659.9,659.37,1.70009388]
[1751954366625,1.70279789,659.9,659.38,1.70009388]
[1751954366826,1.70279789,659.9,659.37,1.70009388]
[1751954367325,1.70279789,659.9,659.38,1.70009388]
[1751954368422,1.70279789,659.89,659.38,1.70009388]
[1751954371722,1.70279789,659.89,659.39,1.70009388]
[1751954372428,1.70279789,659.88,659.39,1.70009388]
[1751954372622,0.41288447,660.02,659.41,1.70009388]
[1751954372623,1.70279789,659.87,659.41,1.70009388]
[1751954373529,1.70279789,659.86,659.42,1.70009388]
[1751954374427,1.70279789,659.85,659.44,1.70009388]
[1751954375224,1.70279789,659.86,659.42,1.70009388]
[1751954375929,1.70279789,659.85,659.43,1.70009388]
[1751954376129,1.70279789,659.86,659.42,1.70009388]
[1751954376526,1.70279789,659.86,659.43,1.70009388]
[1751954376729,1.70279789,659.85,659.43,1.70009388]
[1751954377432,1.70279789,659.84,659.44,1.70009388]
[1751954384934,1.70279789,659.83,659.45,1.70009388]
[1751954385332,1.70279789,659.84,659.45,1.70009388]
[1751954385541,1.70279789,659.84,659.46,1.542]
[1751954386233,1.70279789,659.83,659.46,1.542]
[1751954386832,1.70279789,659.83,659.46,3.24209388]
[1751954391835,1.70279789,659.83,659.46,1.542]
[1751954392439,1.70279789,659.83,659.46,3.24209388]
[1751954395744,1.70279789,659.81,659.49,1.70009388]
[1751954399043,1.70279789,659.82,659.47,1.70009388]
[1751954400645,1.70279789,659.82,659.48,1.70009388]
[1751954400842,2.27132375,659.92,659.46,1.542]
[1751954401046,1.70279789,659.9,659.46,1.542]
[1751954401243,2.68450667,659.94,659.54,1.70009388]
[1751954401447,2.68450667,660.08,659.53,1.70009388]
[1751954401645,1.02013967,660.07,659.53,1.70009388]
[1751954401960,1.02013967,660.08,659.53,1.70009388]
[1751954402448,1.70279789,660.11,659.53,1.70009388]
[1751954403345,1.70279789,660.11,659.52,1.70009388]
[1751954403649,1.70279789,660.11,659.53,1.70009388]
[1751954404344,2.72293756,660.1,659.55,1.70009388]
[1751954404542,1.70279789,660.1,659.55,1.70009388]
[1751954405349,1.70279789,660.1,659.54,1.70009388]
[1751954406545,1.70279789,660.11,659.54,1.70009388]
[1751954407046,1.70279789,660.11,659.53,1.70009388]
[1751954408847,1.70279789,660.1,659.53,1.70009388]
[1751954409449,1.70279789,660.1,659.54,1.70009388]
[1751954409754,4.38730456,660.1,659.54,1.70009388]
[1751954410050,1.70279789,660.01,659.51,1.70009388]
[1751954411651,3.36716489,660.01,659.51,1.70009388]
[1751954411950,1.70279789,660.01,659.51,1.70009388]
[1751954412954,1.70279789,660.02,659.5,1.70009388]
[1751954414558,1.70279789,660.01,659.51,1.70009388]
[1751954416155,2.11555902,660.01,659.51,1.70009388]
[1751954416356,1.70279789,660.01,659.51,1.70009388]
[1751954416574,1.70279789,660.01,659.52,1.70009388]
[1751954417457,1.70279789,660.01,659.51,1.70009388]
[1751954419056,1.70279789,660.0,659.53,1.70009388]
[1751954422762,1.70279789,660.0,659.46,1.542]
[1751954422763,1.70279789,659.99,659.55,1.70009388]
[1751954423660,1.70415018,659.99,659.55,1.70202991]
[1751954424361,1.70415018,659.98,659.56,1.70202991]
[1751954426265,1.70415018,659.99,659.56,1.70202991]
[1751954426567,1.70415018,659.98,659.56,1.70202991]
[1751954427366,1.70415018,659.97,659.58,1.70202991]
[1751954429477,4.38607435,659.97,659.58,1.70202991]
[1751954429678,2.68192417,659.96,659.58,1.70202991]
[1751954429882,0.41276113,659.96,659.58,1.70202991]
[1751954430078,1.70415018,659.97,659.58,1.70202991]
[1751954430678,1.70415018,659.98,659.57,1.70202991]
[1751954430978,1.70415018,659.98,659.56,1.70202991]
[1751954431279,1.70415018,659.98,659.54,1.70202991]
[1751954431577,1.70415018,659.94,659.51,1.70202991]
[1751954432074,1.70415018,659.94,659.52,1.70202991]
[1751954432275,1.70415018,659.93,659.53,1.70202991]
[1751954433676,1.70415018,659.94,659.52,1.70202991]
[1751954433879,4.38606008,659.94,659.52,1.70202991]
[1751954434091,2.6819099,659.93,659.5,1.70202991]
[1751954434278,2.6819099,659.93,659.46,1.542]
[1751954434279,2.6819099,659.94,659.49,1.70202991]
[1751954434482,0.41274686,659.94,659.49,1.70202991]
[1751954434677,1.70415018,659.95,659.49,1.70202991]
[1751954435083,1.70415018,659.96,659.48,1.70202991]
[1751954438687,1.70415018,660.0,659.51,1.70202991]
[1751954438880,1.70415018,659.98,659.53,1.70202991]
[1751954439178,1.01906008,659.98,659.53,1.70202991]
[1751954439382,1.01880726,659.98,659.53,1.70202991]
[1751954439584,1.70415018,659.99,659.53,1.70202991]
[1751954441586,2.72295744,659.99,659.53,1.70202991]
[1751954441786,2.72295744,659.99,659.46,1.542]
[1751954441787,1.70415018,660.0,659.51,1.70202991]
[1751954441984,1.01880726,659.99,659.51,1.70202991]
[1751954442288,1.70415018,659.95,659.46,3.24402991]
[1751954442484,1.70415018,659.95,659.46,1.542]
[1751954442787,1.70415018,659.94,659.46,1.542]
[1751954442985,1.70415018,659.9,659.46,1.542]
[1751954443184,1.70415018,659.89,659.46,1.542]
[1751954443386,1.70415018,659.85,659.46,1.542]
[1751954443588,1.70415018,659.94,659.46,3.24402991]
[1751954444285,1.70415018,659.9,659.46,1.542]
[1751954444888,1.70415018,659.85,659.46,1.542]
[1751954445283,1.70415018,659.86,659.46,1.542]
[1751954445695,1.70415018,659.86,659.36,1.70202991]
[1751954446184,1.70415018,659.87,659.35,1.70202991]
[1751954446386,1.70415018,659.86,659.36,1.70202991]
[1751954447186,1.70415018,659.87,659.35,1.70202991]
[1751954448088,1.70415018,659.87,659.36,1.70202991]
[1751954448286,1.70415018,659.87,659.35,1.70202991]
[1751954448487,1.70415018,659.87,659.37,1.42]
[1751954449187,1.70415018,659.88,659.37,1.42]
[1751954449785,3.13544832,659.88,659.37,1.42]
[1751954449989,1.70415018,659.88,659.37,1.42]
[1751954451389,1.70415018,659.89,659.37,1.42]
[1751954453196,1.70415018,659.87,659.37,1.42]
[1751954454094,1.70415018,659.91,659.37,1.42]
[1751954457094,0.41211375,659.91,659.37,1.42]
[1751954457294,1.70415018,659.94,659.37,1.42]
[1751954458491,1.70415018,659.95,659.37,1.42]
[1751954458991,1.70039958,659.95,659.37,1.42]
[1751954464000,1.70039958,659.94,659.37,1.42]
[1751954467099,1.70039958,659.91,659.37,1.42]
[1751954468605,1.70039958,659.9,659.37,1.42]
[1751954469003,1.70039958,659.91,659.37,1.42]
[1751954470302,1.70039958,659.9,659.37,1.42]
[1751954472902,1.70039958,659.89,659.37,1.42]
[1751954477313,1.70039958,659.88,659.37,1.42]
[1751954477814,1.42910931,659.98,659.37,1.42]
[1751954478015,1.70082485,659.88,659.37,1.42]
[1751954480514,1.70082485,659.87,659.37,1.42]
[1751954483615,1.70082485,659.88,659.37,1.42]
[1751954483817,1.70082485,659.9,659.37,1.42]
[1751954484215,1.70082485,659.89,659.37,1.42]
[1751954486012,4.37813009,659.89,659.37,1.42]
[1751954486211,2.67730524,659.88,659.37,1.42]
[1751954486415,0.41216698,659.88,659.37,1.42]
[1751954486616,1.70082485,659.89,659.37,1.42]
[1751954487617,1.70082485,659.89,659.33,1.69959362]
[1751954488220,1.70082485,659.88,659.33,1.69959362]
[1751954489319,1.70082485,659.88,659.34,1.69959362]
[1751954491123,1.70082485,659.88,659.35,1.324]
[1751954491328,1.70082485,659.87,659.35,1.324]
[1751954492334,1.70082485,659.87,659.35,3.02359362]
[1751954493135,1.70082485,659.86,659.35,3.02359362]
[1751954493329,1.70082485,659.87,659.35,3.02359362]
[1751954493735,1.70082485,659.86,659.37,1.69959362]
[1751954494131,1.70082485,659.86,659.36,1.69959362]
[1751954494435,1.70082485,659.85,659.37,1.69959362]
[1751954494634,1.70082485,659.86,659.36,1.69959362]
[1751954494843,1.70082485,659.87,659.35,1.324]
[1751954495233,1.70082485,659.87,659.35,3.02359362]
[1751954495833,1.70082485,659.86,659.35,3.02359362]
[1751954497335,1.70082485,659.86,659.36,1.69959362]
[1751954498438,1.70082485,659.85,659.36,1.69959362]
[1751954499336,1.70082485,659.85,659.37,1.69959362]
[1751954500342,1.70082485,659.84,659.38,1.69959362]
[1751954501241,1.70082485,659.83,659.39,1.69959362]
[1751954502342,1.70082485,659.82,659.4,1.69959362]
[1751954502642,1.01878808,659.81,659.4,1.69959362]
[1751954503039,1.01878808,659.8,659.41,1.69959362]
[1751954504242,1.70082485,659.79,659.43,1.69959362]
[1751954504442,1.01878808,659.78,659.43,1.69959362]
[1751954504747,2.71961293,659.77,659.46,1.69959362]
[1751954504941,1.01878808,659.76,659.46,1.69959362]
[1751954505141,1.70082485,659.77,659.46,1.69959362]
[1751954505339,1.02023739,659.76,659.46,1.69959362]
[1751954507340,1.70082485,659.77,659.46,1.69959362]
[1751954507639,1.70082485,659.77,659.45,1.69959362]
[1751954507943,1.70082485,659.78,659.45,1.69959362]
[1751954508143,1.02023928,659.77,659.45,1.69959362]
[1751954508444,1.70082485,659.79,659.43,1.69959362]
[1751954510044,2.72106413,659.79,659.43,1.69959362]
[1751954510241,1.70082485,659.8,659.42,1.69959362]
[1751954510447,1.02023928,659.79,659.42,1.69959362]
[1751954511043,1.02024206,659.79,659.42,1.69959362]
[1751954515447,1.70082485,659.8,659.41,1.69959362]
[1751954516248,1.02024206,659.79,659.41,1.69959362]
[1751954516844,1.02024295,659.79,659.41,1.69959362]
[1751954517951,1.02024295,659.79,659.42,1.69959362]
[1751954518351,1.02024295,659.78,659.43,1.69959362]
[1751954520755,1.02024295,659.78,659.35,1.324]
[1751954520756,1.02024295,659.78,659.44,1.69959362]
[1751954521149,1.70082485,659.82,659.41,1.69959362]
[1751954521349,1.02024295,659.81,659.41,1.69959362]
[1751954521655,1.70082485,659.82,659.41,1.69959362]
[1751954522754,4.38591169,659.84,659.42,1.69959362]
[1751954523050,2.68508684,659.83,659.42,1.69959362]
[1751954523254,1.01991385,659.83,659.42,1.69959362]
[1751954523452,1.70082485,659.85,659.42,1.69959362]
[1751954523654,1.70082485,659.9,659.47,1.69959362]
[1751954524154,1.70082485,659.85,659.42,1.69959362]
[1751954524351,1.70082485,659.85,659.41,1.69959362]
[1751954527258,1.01991385,659.85,659.39,1.69959362]
[1751954527456,1.70082485,659.86,659.39,1.69959362]
[1751954528260,1.70082485,659.87,659.39,1.69959362]
[1751954530061,4.38506306,659.87,659.39,1.69959362]
[1751954530260,2.27104343,659.86,659.39,1.69959362]
[1751954530460,1.70082485,659.87,659.39,1.69959362]
[1751954531062,1.70082485,659.86,659.4,1.69959362]
[1751954531660,1.70082485,659.86,659.41,1.69959362]
[1751954532661,1.70082485,659.85,659.42,1.69959362]
[1751954537065,1.70082485,659.82,659.47,1.69959362]
[1751954538669,1.70082485,659.82,659.46,1.69959362]
[1751954539769,1.70082485,659.82,659.47,1.69959362]
[1751954540272,1.70082485,659.82,659.46,1.69959362]
[1751954540569,1.70082485,659.82,659.47,1.69959362]
[1751954543276,11.34369,661.0,659.51,1.69959362]
[1751954543277,1.70082485,659.87,659.51,1.69959362]
[1751954544274,1.70082485,659.88,659.51,1.69959362]
[1751954544884,1.70082485,659.89,659.5,1.69959362]
[1751954545379,1.70082485,659.89,659.38,2.266718]
[1751954545380,1.70082485,659.89,659.49,1.69959362]
[1751954546684,1.70082485,659.89,659.5,1.464]
[1751954548285,1.70082485,659.9,659.5,1.464]
[1751954550783,1.70409751,659.9,659.5,1.464]
[1751954551187,1.70409751,659.91,659.5,1.464]
[1751954556683,1.70409751,659.92,659.5,1.464]
[1751954558189,1.70409751,659.91,659.5,1.464]
[1751954559086,1.70409751,659.92,659.5,1.464]
[1751954561191,1.70409751,659.91,659.5,1.464]
[1751954561588,2.11703432,659.91,659.5,1.464]
[1751954561886,1.70409751,659.91,659.5,1.464]
[1751954563294,1.70409751,659.93,659.5,1.464]
[1751954564995,1.70409751,659.92,659.5,1.464]
[1751954568402,1.70409751,659.93,659.5,1.464]
[1751954569499,2.11707297,659.93,659.5,1.464]
[1751954569700,1.70409751,659.93,659.5,1.464]
[1751954576208,2.11724012,659.93,659.5,1.464]
[1751954576406,1.70409751,659.93,659.5,1.464]
[1751954577105,1.70409751,659.98,659.5,1.464]
[1751954577401,1.70409751,659.97,659.5,1.464]
[1751954578305,1.01833582,659.96,659.5,1.464]
[1751954579507,1.01833582,659.95,659.5,1.464]
[1751954579815,1.01833582,659.96,659.5,1.464]
[1751954580004,1.01833582,659.95,659.5,1.464]
[1751954580202,1.01833582,659.96,659.5,1.464]
[1751954580424,1.01833582,659.95,659.5,1.464]
[1751954580605,1.01833582,659.96,659.5,1.464]
[1751954580806,1.01833582,659.95,659.5,1.464]
[1751954581010,1.01833582,659.96,659.5,1.464]
[1751954581214,1.01833582,659.95,659.5,1.464]
[1751954581407,1.01833582,659.96,659.5,1.464]
[1751954581614,1.70409751,660.01,659.5,1.464]
[1751954581811,1.01833582,660.0,659.5,1.464]
[1751954582108,1.01833582,659.99,659.5,1.464]
[1751954582411,1.01833582,659.98,659.5,1.464]
[1751954582620,1.01833582,659.99,659.5,1.464]
[1751954582808,1.01833582,659.98,659.5,1.464]
[1751954583025,1.01833582,659.97,659.5,1.464]
[1751954583308,1.01833582,659.99,659.5,1.464]
[1751954583507,1.01833582,659.98,659.5,1.464]
[1751954583714,1.01833582,659.97,659.5,1.464]
[1751954583906,1.01833582,659.99,659.5,1.464]
[1751954584112,1.01833582,659.98,659.5,1.464]
[1751954584310,1.01833582,659.97,659.5,1.464]
[1751954584512,1.01833582,659.99,659.5,1.464]
[1751954584819,1.01833582,659.98,659.5,1.464]
[1751954585123,1.01833582,659.97,659.5,1.464]
[1751954585411,1.01833582,659.99,659.5,1.464]
[1751954585609,1.01833582,659.98,659.5,1.464]
[1751954585812,1.01833582,659.99,659.5,1.464]
[1751954586009,1.01833582,659.98,659.5,1.464]
[1751954586209,1.01833582,659.99,659.5,1.464]
[1751954586411,1.01833582,659.98,659.5,1.464]
[1751954586610,1.01995456,659.99,659.5,1.464]
[1751954586814,1.01995456,659.98,659.5,1.464]
[1751954587012,1.01995456,659.97,659.5,1.464]
[1751954587212,1.01995456,659.96,659.5,1.464]
[1751954587412,1.01995456,659.97,659.5,1.464]
[1751954587616,1.01995456,659.96,659.5,1.464]
[1751954587815,1.01995456,659.97,659.5,1.464]
[1751954588016,1.01995456,659.96,659.5,1.464]
[1751954588311,1.01995456,659.97,659.5,1.464]
[1751954588515,1.01995456,659.96,659.5,1.464]
[1751954588715,1.01995456,659.97,659.5,1.464]
[1751954588917,1.01995456,659.96,659.5,1.464]
[1751954589113,1.01995456,659.97,659.5,1.464]
[1751954589315,1.01995456,659.96,659.5,1.464]
[1751954589524,1.01995456,659.97,659.5,1.464]
[1751954589813,1.01995456,659.96,659.5,1.464]
[1751954590015,1.01995456,659.97,659.5,1.464]
[1751954590214,1.01995456,659.96,659.5,1.464]
[1751954590518,1.01995456,659.97,659.5,1.464]
[1751954590716,1.01995456,659.96,659.5,1.464]
[1751954590920,1.01995456,659.97,659.5,1.464]
[1751954591117,1.01995456,659.96,659.5,1.464]
[1751954591313,1.01995456,659.97,659.5,1.464]
[1751954591518,1.70409751,659.91,659.5,1.464]
[1751954591718,1.01995456,659.9,659.5,1.464]
[1751954597927,1.01995456,659.89,659.5,1.464]
[1751954598127,1.70409751,659.86,659.5,1.464]
[1751954598328,2.72405207,659.87,659.5,1.464]
[1751954598524,1.01995456,659.86,659.5,1.464]
[1751954599027,2.72405207,659.86,659.5,1.464]
[1751954599324,1.70409751,659.86,659.5,1.464]
[1751954599525,1.70409751,659.87,659.5,1.464]
[1751954600528,4.38866846,659.87,659.5,1.464]
[1751954600826,2.68457095,659.86,659.5,1.464]
[1751954601026,1.43350831,659.86,659.5,1.464]
[1751954601226,1.70409751,659.87,659.5,1.464]
[1751954601932,1.70409751,659.87,659.46,1.70166518]
[1751954604925,1.70409751,659.87,659.47,1.173]
[1751954606026,1.70409751,659.88,659.47,1.173]
[1751954607830,4.38860313,659.88,659.47,1.173]
[1751954608033,2.68450562,659.87,659.47,1.173]
[1751954608233,1.43344298,659.87,659.47,1.173]
[1751954608530,1.70409751,659.88,659.47,1.173]
[1751954609430,1.70409751,659.89,659.47,1.173]
[1751954611134,2.72398674,659.89,659.47,1.173]
[1751954611331,1.70409751,659.89,659.47,1.173]
[1751954612336,3.13754049,659.89,659.47,1.173]
[1751954612537,1.70409751,659.89,659.47,1.173]
[1751954614237,1.70409751,659.88,659.47,1.173]
[1751954615536,2.72398674,659.88,659.47,1.173]
[1751954615739,1.70409751,659.88,659.47,1.173]
[1751954615937,1.70409751,659.87,659.47,1.173]
[1751954618437,1.70409751,659.9,659.48,1.70166518]
[1751954618839,2.11759707,659.9,659.48,1.70166518]
[1751954619037,1.70409751,659.9,659.48,1.70166518]
[1751954619240,1.70409751,659.9,659.47,1.173]
[1751954619241,1.70409751,659.88,659.51,1.70166518]
[1751954620543,4.38853048,659.99,659.47,1.173]
[1751954620738,2.68443297,659.98,659.47,1.173]
[1751954620943,1.43337033,659.98,659.47,1.173]
[1751954621141,1.70409751,659.99,659.47,1.173]
[1751954622344,1.70409751,660.0,659.47,1.173]
[1751954622543,1.70409751,659.9,659.49,1.70166518]
[1751954622842,1.70409751,659.92,659.5,1.70166518]
[1751954623142,1.01987077,659.91,659.5,1.70166518]
[1751954623346,1.70409751,659.92,659.5,1.70166518]
[1751954623543,2.72396828,659.91,659.52,1.70166518]
[1751954623742,1.70409751,659.91,659.52,1.70166518]
[1751954625347,2.11759707,659.91,659.52,1.70166518]
[1751954625547,1.70409751,659.91,659.52,1.70166518]
[1751954626245,1.70409751,659.91,659.51,1.70166518]
[1751954626447,1.70409751,659.92,659.51,1.70166518]
[1751954627444,1.70409751,659.93,659.49,1.70166518]
[1751954629245,3.3682385,659.93,659.49,1.70166518]
[1751954629443,1.70409751,659.93,659.49,1.70166518]
[1751954631350,1.70409751,659.93,659.5,1.70166518]
[1751954631645,2.68379782,659.99,659.57,1.70166518]
[1751954632148,1.66392705,659.99,659.57,1.70166518]
[1751954632345,1.70409751,660.0,659.58,1.70166518]
[1751954633350,1.70409751,660.0,659.57,1.70166518]
[1751954633549,1.70409751,660.01,659.57,1.70166518]
[1751954634849,4.38789533,660.01,659.57,1.70166518]
[1751954635051,2.68379782,660.0,659.57,1.70166518]
[1751954635349,1.43337033,660.0,659.56,1.70166518]
[1751954635548,1.70409751,660.02,659.57,1.70166518]
[1751954636562,1.70409751,660.02,659.56,1.70166518]
[1751954637548,1.70409751,660.03,659.56,1.70166518]
[1751954638146,1.70409751,660.03,659.55,1.70166518]
[1751954638650,1.70409751,660.03,659.56,1.70166518]
[1751954639546,1.70409751,660.03,659.55,1.70166518]
[1751954639755,2.11759707,660.03,659.55,1.70166518]
[1751954639952,1.70409751,660.03,659.55,1.70166518]
[1751954641253,1.70409751,660.02,659.57,1.70166518]
[1751954642049,1.70409751,660.02,659.56,1.70166518]
[1751954642248,1.70409751,660.04,659.54,1.70166518]
[1751954642652,1.70409751,660.07,659.5,1.70166518]
[1751954643051,1.70409751,660.08,659.48,1.70166518]
[1751954643259,2.11689258,660.08,659.47,2.87466518]
[1751954643556,1.70409751,660.1,659.47,1.173]
[1751954643854,1.70409751,660.11,659.47,1.173]
[1751954644050,1.70409751,660.11,659.43,1.70166518]
[1751954644250,1.70409751,660.12,659.43,1.70166518]
[1751954644455,1.70409751,660.12,659.42,1.70166518]
[1751954644852,1.70409751,660.13,659.41,1.70166518]
[1751954645358,1.01817098,660.2,659.32,0.26379224]
[1751954645359,1.70409751,660.14,659.4,1.70166518]
[1751954645547,1.70409751,660.14,659.39,1.70166518]
[1751954645753,1.70409751,660.15,659.38,1.70166518]
[1751954647251,1.70409751,660.16,659.37,1.70166518]
[1751954647654,1.70409751,660.16,659.36,1.70166518]
[1751954647958,1.70409751,660.16,659.37,1.70166518]
[1751954648254,1.70409751,660.16,659.37,1.195]
[1751954655160,0.26376325,660.21,659.37,1.195]
[1751954655161,1.70409751,660.15,659.37,1.195]
[1751954655559,1.70409751,660.15,659.37,2.89666518]
[1751954656058,1.70409751,660.14,659.38,1.70166518]
[1751954656760,1.70409751,660.13,659.39,1.70166518]
[1751954657260,1.70409751,660.16,659.37,1.195]
[1751954657465,1.70409751,660.15,659.37,1.195]
[1751954657862,1.70409751,660.09,659.37,1.195]
[1751954658581,0.26376325,660.21,659.37,1.195]
[1751954658582,1.70409751,660.08,659.37,1.195]
[1751954661363,1.70409751,660.07,659.37,1.195]
[1751954667172,1.70409751,660.0,659.42,1.70166518]
[1751954668373,0.41247942,660.13,659.42,1.70166518]
[1751954668374,1.70409751,659.99,659.42,1.70166518]
[1751954669475,1.70409751,659.98,659.44,1.70166518]
[1751954670173,1.70409751,659.97,659.47,1.70166518]
[1751954671477,1.70409751,659.97,659.48,3.49366518]